[Event "2025 Chess.com Botwinnik Rapid toernooi"]
[Site "Zoetermeer, Netherlands"]
[Date "????.??.??"]
[Round "4.5"]
[White "Roesink, Veron"]
[Black "Grochal, Joey"]
[Result "0-1"]
[TimeControl "15+5"]
[BlackTitle "FM"]
[WhiteFideId "8378909"]
[BlackFideId "7926875"]
[WhiteElo "1930"]
[BlackElo "2272"]

1. e4 {[%clk 00:15:09]} c5 {[%clk 00:15:09]} 2. Nf3 {[%clk 00:15:13]} {[%emt
00:00:02]} Nc6 {[%clk 00:15:13]} {[%emt 00:00:01]} 3. d4 {[%clk 00:15:17]} cxd4
{[%clk 00:15:17]} {[%emt 00:00:02]} 4. Nxd4 {[%clk 00:15:20]} {[%emt 00:00:01]}
Nf6 {[%clk 00:15:21]} {[%emt 00:00:01]} 5. Nc3 {[%clk 00:15:23]} {[%emt
00:00:02]} e6 {[%clk 00:15:24]} {[%emt 00:00:01]} 6. Be3 {[%clk 00:15:24]}
{[%emt 00:00:04]} Bb4 {[%clk 00:15:23]} {[%emt 00:00:07]} 7. Bd3 {[%clk
00:15:17]} {[%emt 00:00:12]} d5 {[%clk 00:15:18]} {[%emt 00:00:09]} 8. Nxc6
{[%clk 00:14:57]} {[%emt 00:00:25]} bxc6 {[%clk 00:15:22]} {[%emt 00:00:01]} 9.
exd5 {[%clk 00:14:55]} {[%emt 00:00:07]} cxd5 {[%clk 00:15:15]} {[%emt
00:00:12]} 10. O-O {[%clk 00:14:45]} {[%emt 00:00:15]} O-O {[%clk 00:15:07]}
{[%emt 00:00:13]} 11. Bd4 {[%clk 00:14:37]} {[%emt 00:00:13]} Re8 {[%clk
00:14:43]} {[%emt 00:00:30]} 12. Re1 {[%clk 00:13:56]} {[%emt 00:00:46]} Bb7
{[%clk 00:14:09]} {[%emt 00:00:39]} 13. Qf3 {[%clk 00:12:43]} {[%emt 00:01:19]}
Bd6 {[%clk 00:14:00]} {[%emt 00:00:14]} 14. Be5 {[%clk 00:11:39]} {[%emt
00:01:09]} Bxe5 {[%clk 00:12:49]} {[%emt 00:01:16]} 15. Rxe5 {[%clk 00:11:41]}
{[%emt 00:00:02]} Qc7 {[%clk 00:12:08]} {[%emt 00:00:45]} 16. Rg5 {[%clk
00:09:46]} {[%emt 00:02:00]} Qe7 {[%clk 00:09:49]} {[%emt 00:02:25]} 17. Qg3
{[%clk 00:08:39]} {[%emt 00:01:12]} g6 {[%clk 00:09:40]} {[%emt 00:00:14]} 18.
Re1 {[%clk 00:08:04]} {[%emt 00:00:40]} Red8 {[%clk 00:08:33]} {[%emt
00:01:12]} 19. h4 {[%clk 00:06:39]} {[%emt 00:01:29]} Rac8 {[%clk 00:07:21]}
{[%emt 00:01:18]} 20. h5 {[%clk 00:06:28]} {[%emt 00:00:16]} Ne4 {[%clk
00:07:24]} {[%emt 00:00:02]} 21. Bxe4 {[%emt 00:00:47]} dxe4 {[%clk 00:07:24]}
{[%emt 00:00:03]} 22. hxg6 {[%clk 00:05:18]} {[%emt 00:00:35]} hxg6 {[%clk
00:07:28]} {[%emt 00:00:01]} 23. Qf4 {[%clk 00:04:02]} {[%emt 00:01:20]} Rd4
{[%clk 00:05:11]} {[%emt 00:02:23]} 24. Qh4 {[%clk 00:02:40]} {[%emt 00:01:26]}
Qf6 {[%clk 00:04:48]} {[%emt 00:00:28]} 25. Re3 {[%clk 00:02:07]} {[%emt
00:00:39]} Rc5 {[%clk 00:04:29]} {[%emt 00:00:23]} 26. Reg3 {[%clk 00:01:53]}
{[%emt 00:00:18]} Rxg5 {[%clk 00:04:15]} {[%emt 00:00:19]} 27. Qxg5 {[%clk
00:01:37]} {[%emt 00:00:22]} Qxg5 {[%clk 00:03:29]} {[%emt 00:00:51]} 28. Rxg5
{[%clk 00:01:40]} {[%emt 00:00:01]} Rd2 {[%clk 00:03:33]} {[%emt 00:00:02]} 29.
Rb5 {[%clk 00:01:44]} {[%emt 00:00:02]} Bd5 {[%clk 00:03:36]} {[%emt 00:00:01]}
30. Nxd5 {[%clk 00:01:13]} {[%emt 00:00:36]} exd5 {[%clk 00:03:37]} {[%emt
00:00:04]} 31. c3 {[%emt 00:00:27]} f5 {[%clk 00:03:16]} {[%emt 00:00:25]} 32.
Kf1 {[%clk 00:00:55]} {[%emt 00:00:02]} f4 {[%clk 00:03:20]} {[%emt 00:00:01]}
33. Ke1 {[%clk 00:00:55]} {[%emt 00:00:05]} e3 {[%clk 00:03:15]} {[%emt
00:00:10]} 34. fxe3 {[%clk 00:00:46]} {[%emt 00:00:14]} fxe3 {[%clk 00:03:19]}
{[%emt 00:00:01]} 35. g4 {[%clk 00:00:42]} {[%emt 00:00:09]} Kf7 {[%clk
00:03:22]} {[%emt 00:00:02]} 36. Rb7+ {[%clk 00:00:19]} {[%emt 00:00:28]} Kf6
{[%clk 00:03:25]} {[%emt 00:00:02]} 37. Rxa7 {[%clk 00:00:23]} {[%emt
00:00:01]} Rxb2 {[%clk 00:03:15]} {[%emt 00:00:14]} 38. Rd7 {[%clk 00:00:14]}
{[%emt 00:00:15]} Ke5 {[%clk 00:03:19]} {[%emt 00:00:02]} 39. Re7+ {[%clk
00:00:09]} {[%emt 00:00:09]} Kf4 {[%clk 00:03:23]} {[%emt 00:00:01]} 40. a4
{[%clk 00:00:13]} {[%emt 00:00:01]} Kf3 {[%clk 00:03:26]} {[%emt 00:00:01]} 41.
Rf7+ {[%clk 00:00:17]} {[%emt 00:00:01]} Ke4 {[%clk 00:03:30]} 42. Re7+ {[%clk
00:00:09]} {[%emt 00:00:12]} Kd3 {[%clk 00:03:34]} 43. Kf1 {[%clk 00:00:14]}
{[%emt 00:00:01]} Rb1+ {[%clk 00:03:38]} {[%emt 00:00:01]} 44. Kg2 {[%clk
00:00:18]} e2 {[%clk 00:03:42]} {[%emt 00:00:02]} 0-1

[Event "2025 Chess.com Botwinnik Rapid toernooi"]
[Site "Zoetermeer, Netherlands"]
[Date "????.??.??"]
[Round "4.6"]
[White "Li-Behn, Tobias"]
[Black "Van der Werf, Joël"]
[Result "1/2-1/2"]
[TimeControl "15+5"]
[WhiteFideId "8747783"]
[BlackFideId "8301040"]
[WhiteElo "1992"]
[BlackElo "2113"]

1. e4 {[%clk 00:15:06]} {[%emt 00:00:04]} c5 {[%clk 00:15:09]} {[%emt
00:00:02]} 2. Nf3 {[%clk 00:15:09]} {[%emt 00:00:02]} Nc6 {[%clk 00:15:13]}
{[%emt 00:00:01]} 3. c4 {[%clk 00:15:13]} {[%emt 00:00:01]} e5 {[%clk
00:14:42]} {[%emt 00:00:35]} 4. Nc3 {[%clk 00:15:16]} {[%emt 00:00:02]} g6
{[%clk 00:14:44]} {[%emt 00:00:03]} 5. g3 {[%clk 00:15:17]} {[%emt 00:00:04]}
Bg7 {[%clk 00:14:48]} {[%emt 00:00:02]} 6. Bg2 {[%clk 00:15:21]} Nge7 {[%clk
00:14:52]} {[%emt 00:00:02]} 7. O-O {[%clk 00:15:23]} {[%emt 00:00:03]} O-O
{[%clk 00:14:55]} {[%emt 00:00:02]} 8. d3 {[%clk 00:15:11]} {[%emt 00:00:17]}
d6 {[%clk 00:14:51]} {[%emt 00:00:08]} 9. h3 {[%clk 00:14:55]} {[%emt
00:00:21]} h6 {[%clk 00:14:55]} {[%emt 00:00:01]} 10. Be3 {[%clk 00:14:50]}
{[%emt 00:00:10]} f5 {[%clk 00:14:45]} {[%emt 00:00:15]} 11. Qd2 {[%clk
00:13:34]} {[%emt 00:01:21]} Kh7 {[%clk 00:14:37]} {[%emt 00:00:14]} 12. exf5
{[%clk 00:13:13]} {[%emt 00:00:26]} Nxf5 {[%clk 00:14:10]} {[%emt 00:00:32]} 13.
g4 {[%clk 00:13:09]} {[%emt 00:00:08]} Nfd4 {[%clk 00:14:14]} {[%emt 00:00:02]}
14. Bxd4 {[%clk 00:13:00]} {[%emt 00:00:15]} cxd4 {[%clk 00:13:12]} {[%emt
00:01:07]} 15. Ne4 {[%clk 00:12:56]} {[%emt 00:00:09]} a5 {[%clk 00:12:09]}
{[%emt 00:01:08]} 16. Rae1 {[%clk 00:12:25]} {[%emt 00:00:35]} Rf4 {[%clk
00:11:24]} {[%emt 00:00:50]} 17. Ng3 {[%clk 00:11:27]} {[%emt 00:01:03]} Qf8
{[%clk 00:10:40]} {[%emt 00:00:49]} 18. Nh2 {[%clk 00:10:46]} {[%emt 00:00:45]}
Bd7 {[%clk 00:10:33]} {[%emt 00:00:13]} 19. Ne2 {[%clk 00:10:11]} {[%emt
00:00:40]} Rf7 {[%clk 00:10:28]} {[%emt 00:00:09]} 20. Be4 {[%clk 00:10:00]}
{[%emt 00:00:17]} Qd8 {[%clk 00:09:53]} {[%emt 00:00:40]} 21. f4 {[%clk
00:09:59]} {[%emt 00:00:05]} Qh4 {[%clk 00:07:11]} {[%emt 00:02:46]} 22. Rf3
{[%clk 00:09:53]} {[%emt 00:00:11]} Raf8 {[%clk 00:07:11]} {[%emt 00:00:06]} 23.
Ref1 {[%clk 00:09:53]} {[%emt 00:00:04]} Nd8 {[%clk 00:05:27]} {[%emt
00:01:49]} 24. Kg2 {[%clk 00:06:39]} {[%emt 00:03:19]} Bc6 {[%clk 00:05:24]}
{[%emt 00:00:08]} 25. Bd5 {[%clk 00:04:47]} {[%emt 00:01:57]} Bxd5 {[%clk
00:04:46]} {[%emt 00:00:44]} 26. cxd5 {[%clk 00:04:51]} {[%emt 00:00:01]} exf4
{[%clk 00:04:26]} {[%emt 00:00:25]} 27. Rxf4 {[%clk 00:04:12]} {[%emt
00:00:44]} Be5 {[%clk 00:03:26]} {[%emt 00:01:04]} 28. Rxf7+ {[%clk 00:04:08]}
{[%emt 00:00:09]} Rxf7 {[%clk 00:03:30]} {[%emt 00:00:01]} 29. Rxf7+ {[%clk
00:03:59]} {[%emt 00:00:15]} Nxf7 {[%clk 00:03:34]} 30. Nf3 {[%clk 00:03:46]}
{[%emt 00:00:17]} Qe7 {[%clk 00:03:38]} {[%emt 00:00:02]} 31. Qxa5 {[%clk
00:03:36]} {[%emt 00:00:15]} Ng5 {[%clk 00:03:14]} {[%emt 00:00:29]} 32. Qd2
{[%emt 00:01:13]} 1/2-1/2

[Event "2025 Chess.com Botwinnik Rapid toernooi"]
[Site "Zoetermeer, Netherlands"]
[Date "????.??.??"]
[Round "4.8"]
[White "Vermeulen, Aad"]
[Black "Van den Berg, Jaap"]
[Result "0-1"]
[TimeControl "15+5"]
[WhiteFideId "8465831"]
[BlackFideId "7651391"]
[WhiteElo "1769"]
[BlackElo "1842"]

1. e4 {[%clk 00:15:07]} {[%emt 00:00:02]} e5 {[%clk 00:15:09]} {[%emt
00:00:02]} 2. Nf3 {[%clk 00:15:09]} {[%emt 00:00:03]} Nc6 {[%clk 00:15:12]}
{[%emt 00:00:03]} 3. Bb5 {[%clk 00:15:12]} {[%emt 00:00:02]} d6 {[%clk
00:15:12]} {[%emt 00:00:05]} 4. d4 {[%clk 00:15:12]} {[%emt 00:00:05]} exd4
{[%clk 00:15:14]} {[%emt 00:00:03]} 5. Nxd4 {[%clk 00:15:15]} {[%emt 00:00:02]}
Bd7 {[%clk 00:15:18]} {[%emt 00:00:02]} 6. Nxc6 {[%clk 00:15:17]} {[%emt
00:00:03]} bxc6 {[%clk 00:15:21]} {[%emt 00:00:02]} 7. Be2 {[%clk 00:15:19]}
{[%emt 00:00:02]} g6 {[%clk 00:15:10]} {[%emt 00:00:16]} 8. O-O {[%clk
00:15:10]} {[%emt 00:00:13]} Bg7 {[%clk 00:15:13]} {[%emt 00:00:03]} 9. c3
{[%clk 00:15:07]} {[%emt 00:00:09]} Nf6 {[%clk 00:14:56]} {[%emt 00:00:21]} 10.
Qc2 {[%clk 00:14:56]} {[%emt 00:00:15]} O-O {[%clk 00:14:43]} {[%emt 00:00:18]}
11. Nd2 {[%clk 00:14:27]} {[%emt 00:00:34]} Re8 {[%clk 00:14:27]} {[%emt
00:00:21]} 12. Bd3 {[%clk 00:14:10]} {[%emt 00:00:22]} c5 {[%clk 00:13:49]}
{[%emt 00:00:43]} 13. f3 {[%clk 00:13:07]} {[%emt 00:01:08]} Bc6 {[%clk
00:13:35]} {[%emt 00:00:19]} 14. b3 {[%clk 00:11:49]} {[%emt 00:01:25]} d5
{[%clk 00:12:31]} {[%emt 00:01:09]} 15. exd5 {[%clk 00:09:22]} {[%emt
00:02:32]} Nxd5 {[%clk 00:12:08]} {[%emt 00:00:28]} 16. Bb2 {[%clk 00:09:10]}
{[%emt 00:00:16]} Ne3 {[%clk 00:11:51]} {[%emt 00:00:22]} 17. Qb1 {[%clk
00:08:15]} {[%emt 00:01:00]} Nxf1 {[%clk 00:11:47]} {[%emt 00:00:09]} 18. Qxf1
{[%clk 00:08:19]} {[%emt 00:00:01]} Qh4 {[%clk 00:10:25]} {[%emt 00:01:27]} 19.
Be4 {[%clk 00:07:28]} {[%emt 00:00:55]} Bxe4 {[%clk 00:09:49]} {[%emt
00:00:41]} 20. Nxe4 {[%clk 00:07:28]} {[%emt 00:00:05]} Rad8 {[%clk 00:08:43]}
{[%emt 00:01:12]} 21. Qc4 {[%clk 00:06:44]} {[%emt 00:00:49]} Qh6 {[%clk
00:06:41]} {[%emt 00:02:07]} 22. Qxc5 {[%clk 00:05:05]} {[%emt 00:01:44]} Qf4
{[%clk 00:05:28]} {[%emt 00:01:17]} 23. Bc1 {[%clk 00:03:15]} {[%emt 00:01:55]}
Rd1+ {[%clk 00:04:54]} {[%emt 00:00:39]} 24. Kf2 {[%clk 00:03:19]} {[%emt
00:00:01]} Rxc1 {[%emt 00:01:02]} 25. Ke1 {[%emt 00:00:06]} 0-1

[Event "2025 Chess.com Botwinnik Rapid toernooi"]
[Site "Zoetermeer, Netherlands"]
[Date "????.??.??"]
[Round "5.1"]
[White "Lai, Hing Ting"]
[Black "Smit, Manuel"]
[Result "1-0"]
[TimeControl "15+5"]
[WhiteTitle "IM"]
[WhiteFideId "8324987"]
[BlackFideId "7689517"]
[WhiteElo "2484"]
[BlackElo "2016"]

1. d4 {[%clk 00:15:07]} {[%emt 00:00:04]} Nf6 {[%clk 00:15:12]} {[%emt
00:00:03]} 2. Nf3 {[%clk 00:15:09]} {[%emt 00:00:03]} c5 {[%clk 00:15:14]}
{[%emt 00:00:03]} 3. d5 {[%clk 00:15:11]} {[%emt 00:00:03]} b5 {[%clk
00:15:07]} {[%emt 00:00:11]} 4. Bg5 {[%clk 00:15:09]} {[%emt 00:00:07]} e6
{[%clk 00:13:37]} {[%emt 00:01:36]} 5. Nc3 {[%clk 00:13:13]} {[%emt 00:02:01]}
b4 {[%clk 00:13:19]} {[%emt 00:00:23]} 6. Ne4 {[%clk 00:13:16]} {[%emt
00:00:02]} Bb7 {[%clk 00:13:01]} {[%emt 00:00:23]} 7. c4 {[%clk 00:10:57]}
{[%emt 00:02:24]} bxc3 {[%clk 00:13:02]} {[%emt 00:00:04]} 8. Bxf6 {[%clk
00:10:47]} {[%emt 00:00:15]} gxf6 {[%clk 00:13:00]} {[%emt 00:00:07]} 9. Nxc3
{[%clk 00:10:50]} {[%emt 00:00:02]} f5 {[%clk 00:12:36]} {[%emt 00:00:28]} 10.
e3 {[%clk 00:10:50]} {[%emt 00:00:06]} Bg7 {[%clk 00:12:29]} {[%emt 00:00:12]}
11. Bc4 {[%clk 00:10:54]} {[%emt 00:00:02]} Na6 {[%clk 00:10:06]} {[%emt
00:02:28]} 12. O-O {[%clk 00:10:41]} {[%emt 00:00:18]} Bxc3 {[%clk 00:09:58]}
{[%emt 00:00:14]} 13. bxc3 {[%clk 00:10:44]} {[%emt 00:00:02]} Nc7 {[%clk
00:09:30]} {[%emt 00:00:32]} 14. d6 {[%clk 00:10:45]} {[%emt 00:00:04]} Nd5
{[%clk 00:09:10]} {[%emt 00:00:25]} 15. Rc1 {[%clk 00:08:45]} {[%emt 00:02:05]}
Qf6 {[%clk 00:08:59]} {[%emt 00:00:16]} 16. Qd2 {[%clk 00:08:19]} {[%emt
00:00:31]} Rg8 {[%clk 00:08:55]} {[%emt 00:00:08]} 17. Ne1 {[%clk 00:08:09]}
{[%emt 00:00:16]} Qe5 {[%clk 00:07:19]} {[%emt 00:01:41]} 18. Be2 {[%clk
00:07:47]} {[%emt 00:00:26]} f4 {[%clk 00:06:39]} {[%emt 00:00:45]} 19. e4
{[%clk 00:07:47]} {[%emt 00:00:06]} Nb6 {[%clk 00:06:09]} {[%emt 00:00:35]} 20.
f3 {[%clk 00:07:46]} {[%emt 00:00:06]} f5 {[%clk 00:05:56]} {[%emt 00:00:18]}
21. Nd3 {[%clk 00:07:24]} {[%emt 00:00:26]} Qg7 {[%clk 00:06:00]} {[%emt
00:00:01]} 22. Nxf4 {[%clk 00:07:28]} {[%emt 00:00:01]} e5 {[%clk 00:05:44]}
{[%emt 00:00:20]} 23. exf5 {[%clk 00:06:25]} {[%emt 00:01:08]} exf4 {[%clk
00:05:48]} {[%emt 00:00:01]} 24. Bb5 {[%clk 00:06:30]} {[%emt 00:00:01]} O-O-O
{[%clk 00:05:42]} {[%emt 00:00:11]} 25. Rf2 {[%clk 00:05:40]} {[%emt 00:00:55]}
Nd5 {[%clk 00:05:03]} {[%emt 00:00:43]} 26. Bc4 {[%clk 00:05:43]} {[%emt
00:00:02]} Ne3 {[%clk 00:05:00]} {[%emt 00:00:07]} 27. Bxg8 {[%clk 00:05:47]}
{[%emt 00:00:01]} Rxg8 {[%clk 00:05:04]} {[%emt 00:00:01]} 28. Rb1 {[%clk
00:05:41]} {[%emt 00:00:12]} Qe5 {[%clk 00:04:52]} {[%emt 00:00:17]} 29. Qb2
{[%clk 00:05:44]} {[%emt 00:00:02]} Qd5 {[%clk 00:04:51]} {[%emt 00:00:06]} 30.
f6 {[%clk 00:05:32]} {[%emt 00:00:17]} Rf8 {[%clk 00:04:46]} {[%emt 00:00:10]}
31. Qb5 {[%clk 00:04:57]} {[%emt 00:00:40]} Rxf6 {[%clk 00:04:42]} {[%emt
00:00:09]} 32. Rfb2 {[%clk 00:05:00]} {[%emt 00:00:02]} Rxd6 {[%clk 00:04:06]}
{[%emt 00:00:40]} 33. Qxb7+ {[%clk 00:05:03]} {[%emt 00:00:04]} Qxb7 {[%clk
00:04:09]} 34. Rxb7 {[%clk 00:05:07]} {[%emt 00:00:01]} Rd2 {[%clk 00:03:55]}
{[%emt 00:00:19]} 35. R7b2 {[%clk 00:05:06]} {[%emt 00:00:06]} Rd3 {[%clk
00:03:56]} {[%emt 00:00:04]} 36. Rc1 {[%clk 00:04:46]} {[%emt 00:00:25]} Nd5
{[%clk 00:03:53]} {[%emt 00:00:08]} 37. Kf2 {[%clk 00:04:38]} {[%emt 00:00:13]}
d6 {[%clk 00:03:52]} {[%emt 00:00:06]} 38. g3 {[%clk 00:03:58]} {[%emt
00:00:45]} fxg3+ {[%clk 00:03:55]} {[%emt 00:00:01]} 39. hxg3 {[%clk 00:04:02]}
Nxc3 {[%clk 00:03:41]} {[%emt 00:00:19]} 40. Rb3 {[%clk 00:03:49]} {[%emt
00:00:18]} Nxa2 {[%clk 00:01:59]} {[%emt 00:01:47]} 41. Rxc5+ {[%clk 00:03:50]}
{[%emt 00:00:05]} dxc5 {[%clk 00:02:03]} 42. Rxd3 {[%clk 00:03:54]} {[%emt
00:00:01]} Nb4 {[%clk 00:01:51]} {[%emt 00:00:17]} 43. Rc3 {[%clk 00:03:57]}
{[%emt 00:00:02]} Kd7 {[%clk 00:01:50]} {[%emt 00:00:05]} 44. Ke2 {[%clk
00:04:00]} {[%emt 00:00:02]} Kd6 {[%clk 00:01:50]} {[%emt 00:00:05]} 45. Kd2
{[%clk 00:04:00]} {[%emt 00:00:05]} a5 {[%clk 00:01:54]} 46. Ra3 {[%clk
00:03:57]} {[%emt 00:00:09]} Nc6 {[%clk 00:01:54]} {[%emt 00:00:05]} 47. Ra4
{[%clk 00:03:46]} {[%emt 00:00:16]} Kd5 {[%clk 00:01:54]} {[%emt 00:00:05]} 48.
f4 {[%clk 00:03:33]} {[%emt 00:00:18]} h5 {[%clk 00:01:38]} {[%emt 00:00:21]}
49. Ke3 {[%clk 00:03:15]} {[%emt 00:00:23]} c4 {[%clk 00:01:36]} {[%emt
00:00:08]} 50. f5 {[%clk 00:03:10]} {[%emt 00:00:10]} Kc5 {[%clk 00:01:33]}
{[%emt 00:00:08]} 51. f6 {[%clk 00:03:08]} {[%emt 00:00:06]} Kd6 {[%clk
00:00:26]} {[%emt 00:01:12]} 52. Kf4 {[%clk 00:02:39]} {[%emt 00:00:34]} Ke6
{[%clk 00:00:22]} {[%emt 00:00:09]} 53. Rxc4 {[%clk 00:02:43]} {[%emt
00:00:01]} Nd8 {[%clk 00:00:11]} {[%emt 00:00:16]} 54. Rc8 {[%clk 00:02:42]}
{[%emt 00:00:06]} Nf7 {[%clk 00:00:11]} {[%emt 00:00:05]} 55. Rc6+ {[%clk
00:02:46]} Kd5 {[%clk 00:00:11]} {[%emt 00:00:04]} 56. Ra6 {[%clk 00:02:50]}
{[%emt 00:00:02]} a4 {[%clk 00:00:08]} {[%emt 00:00:08]} 57. Rxa4 {[%clk
00:02:52]} {[%emt 00:00:03]} Ke6 {[%clk 00:00:08]} {[%emt 00:00:05]} 58. Ra6+
{[%clk 00:02:56]} Kd5 {[%clk 00:00:11]} {[%emt 00:00:02]} 59. Kf5 {[%clk
00:03:01]} Nh6 {[%clk 00:00:08]} {[%emt 00:00:08]} 60. Kg6 {[%clk 00:03:05]}
Ng4 {[%clk 00:00:07]} {[%emt 00:00:06]} 61. f7 {[%clk 00:03:08]} {[%emt
00:00:02]} Ne5+ {[%clk 00:00:11]} 62. Kg7 {[%clk 00:03:13]} 1-0

[Event "2025 Chess.com Botwinnik Rapid toernooi"]
[Site "Zoetermeer, Netherlands"]
[Date "????.??.??"]
[Round "5.2"]
[White "Van Vliet, Jeffrey"]
[Black "Tjiam, Dharma"]
[Result "1-0"]
[TimeControl "15+5"]
[WhiteTitle "FM"]
[BlackTitle "IM"]
[WhiteFideId "7890839"]
[BlackFideId "6383751"]
[WhiteElo "2387"]
[BlackElo "2364"]

1. e4 {[%clk 00:15:05]} {[%emt 00:00:03]} d6 {[%clk 00:15:09]} {[%emt
00:00:02]} 2. d4 {[%clk 00:15:08]} {[%emt 00:00:02]} Nf6 {[%clk 00:15:13]}
{[%emt 00:00:01]} 3. f3 {[%clk 00:15:09]} {[%emt 00:00:03]} g6 {[%clk
00:13:58]} {[%emt 00:01:20]} 4. c4 {[%clk 00:14:58]} {[%emt 00:00:16]} Bg7
{[%clk 00:14:01]} {[%emt 00:00:02]} 5. Nc3 {[%clk 00:15:01]} {[%emt 00:00:02]}
O-O {[%clk 00:14:04]} {[%emt 00:00:03]} 6. Be3 {[%clk 00:15:04]} {[%emt
00:00:02]} Nc6 {[%clk 00:14:06]} {[%emt 00:00:04]} 7. Qd2 {[%clk 00:14:58]}
{[%emt 00:00:10]} a6 {[%clk 00:14:07]} {[%emt 00:00:04]} 8. Rc1 {[%clk
00:13:51]} {[%emt 00:01:12]} e5 {[%clk 00:13:41]} {[%emt 00:00:31]} 9. d5
{[%clk 00:13:51]} {[%emt 00:00:05]} Ne7 {[%clk 00:13:43]} {[%emt 00:00:03]} 10.
c5 {[%clk 00:13:41]} {[%emt 00:00:15]} Nd7 {[%clk 00:12:20]} {[%emt 00:01:27]}
11. cxd6 {[%clk 00:13:37]} {[%emt 00:00:09]} cxd6 {[%clk 00:12:23]} {[%emt
00:00:02]} 12. Bd3 {[%clk 00:13:13]} {[%emt 00:00:29]} f5 {[%clk 00:11:51]}
{[%emt 00:00:38]} 13. Nge2 {[%clk 00:13:16]} {[%emt 00:00:02]} Rf7 {[%clk
00:10:52]} {[%emt 00:01:04]} 14. O-O {[%clk 00:13:09]} {[%emt 00:00:11]} f4
{[%clk 00:09:56]} {[%emt 00:01:01]} 15. Bf2 {[%clk 00:13:11]} {[%emt 00:00:03]}
Bf8 {[%clk 00:10:00]} {[%emt 00:00:02]} 16. Rc2 {[%clk 00:09:34]} {[%emt
00:03:43]} g5 {[%clk 00:08:49]} {[%emt 00:01:16]} 17. Rfc1 {[%clk 00:09:35]}
{[%emt 00:00:03]} Rg7 {[%clk 00:07:56]} {[%emt 00:00:57]} 18. Kf1 {[%clk
00:09:25]} {[%emt 00:00:15]} g4 {[%clk 00:07:28]} {[%emt 00:00:33]} 19. fxg4
{[%clk 00:09:16]} {[%emt 00:00:14]} Rxg4 {[%clk 00:07:29]} {[%emt 00:00:04]} 20.
Ng1 {[%clk 00:09:18]} {[%emt 00:00:02]} Qe8 {[%clk 00:06:25]} {[%emt 00:01:10]}
21. Be2 {[%clk 00:09:08]} {[%emt 00:00:15]} Rg7 {[%clk 00:06:20]} {[%emt
00:00:10]} 22. Bf3 {[%clk 00:08:48]} {[%emt 00:00:26]} Nf6 {[%clk 00:06:11]}
{[%emt 00:00:15]} 23. h3 {[%clk 00:07:54]} {[%emt 00:00:58]} Bd7 {[%clk
00:05:25]} {[%emt 00:00:51]} 24. Qe2 {[%clk 00:06:07]} {[%emt 00:01:52]} Qg6
{[%clk 00:04:17]} {[%emt 00:01:13]} 25. a4 {[%clk 00:05:55]} {[%emt 00:00:17]}
Nf5 {[%clk 00:02:46]} {[%emt 00:01:36]} 26. b3 {[%clk 00:03:34]} {[%emt
00:02:27]} Nd4 {[%clk 00:02:37]} {[%emt 00:00:14]} 27. Bxd4 {[%clk 00:03:36]}
{[%emt 00:00:04]} exd4 {[%clk 00:02:40]} {[%emt 00:00:01]} 28. Nd1 {[%clk
00:03:31]} {[%emt 00:00:10]} Re8 {[%clk 00:02:44]} {[%emt 00:00:01]} 29. Nf2
{[%clk 00:03:18]} {[%emt 00:00:18]} b5 {[%clk 00:02:39]} {[%emt 00:00:11]} 30.
Rc7 {[%clk 00:03:02]} {[%emt 00:00:20]} Nxd5 {[%clk 00:02:24]} {[%emt
00:00:20]} 31. Rxd7 {[%clk 00:02:48]} {[%emt 00:00:19]} Ne3+ {[%clk 00:02:01]}
{[%emt 00:00:28]} 32. Ke1 {[%clk 00:02:52]} {[%emt 00:00:01]} Rxd7 {[%clk
00:02:03]} {[%emt 00:00:03]} 33. Nd3 {[%clk 00:02:45]} {[%emt 00:00:12]} d5
{[%clk 00:01:57]} {[%emt 00:00:11]} 34. e5 {[%clk 00:02:10]} {[%emt 00:00:40]}
Rdd8 {[%clk 00:01:47]} {[%emt 00:00:15]} 35. axb5 {[%clk 00:02:04]} {[%emt
00:00:11]} axb5 {[%clk 00:01:50]} {[%emt 00:00:02]} 36. Bh5 {[%clk 00:01:35]}
{[%emt 00:00:35]} Qg3+ {[%clk 00:01:33]} {[%emt 00:00:22]} 37. Qf2 {[%clk
00:01:27]} {[%emt 00:00:13]} Nxg2+ {[%clk 00:01:31]} {[%emt 00:00:07]} 38. Ke2
{[%clk 00:01:25]} {[%emt 00:00:08]} Re7 {[%clk 00:01:13]} {[%emt 00:00:22]} 39.
Nf3 {[%clk 00:01:19]} {[%emt 00:00:11]} Qxf2+ {[%clk 00:01:06]} {[%emt
00:00:12]} 40. Kxf2 {[%clk 00:01:23]} {[%emt 00:00:01]} Rg7 {[%clk 00:01:10]}
{[%emt 00:00:01]} 41. Nxd4 {[%clk 00:01:20]} {[%emt 00:00:08]} Ra8 {[%clk
00:01:07]} {[%emt 00:00:08]} 42. Bf3 {[%clk 00:00:46]} {[%emt 00:00:40]} Ra2+
{[%clk 00:01:09]} {[%emt 00:00:03]} 43. Rc2 {[%clk 00:00:50]} Rxc2+ {[%clk
00:01:00]} {[%emt 00:00:13]} 44. Nxc2 {[%clk 00:00:54]} {[%emt 00:00:02]} Ne3
{[%clk 00:00:55]} {[%emt 00:00:10]} 45. Nd4 {[%clk 00:00:42]} {[%emt 00:00:17]}
Nc4 {[%clk 00:00:36]} {[%emt 00:00:24]} 46. Bxd5+ {[%clk 00:00:44]} {[%emt
00:00:03]} Kh8 {[%clk 00:00:39]} 47. bxc4 {[%clk 00:00:47]} {[%emt 00:00:02]}
bxc4 {[%clk 00:00:41]} {[%emt 00:00:04]} 48. Bxc4 {[%clk 00:00:50]} {[%emt
00:00:02]} Rc7 {[%clk 00:00:40]} {[%emt 00:00:06]} 49. Bb5 {[%clk 00:00:34]}
{[%emt 00:00:22]} Rc3 {[%clk 00:00:33]} {[%emt 00:00:10]} 50. Ne2 {[%clk
00:00:27]} {[%emt 00:00:12]} Rb3 {[%clk 00:00:27]} {[%emt 00:00:10]} 51. Bc4
{[%clk 00:00:31]} {[%emt 00:00:03]} Rb1 {[%clk 00:00:29]} {[%emt 00:00:02]} 52.
Nexf4 {[%clk 00:00:34]} {[%emt 00:00:03]} Be7 {[%clk 00:00:32]} {[%emt
00:00:02]} 53. Kf3 {[%clk 00:00:35]} {[%emt 00:00:04]} Kg7 {[%clk 00:00:35]}
{[%emt 00:00:01]} 54. Ke4 {[%clk 00:00:37]} {[%emt 00:00:03]} Rh1 {[%clk
00:00:31]} {[%emt 00:00:09]} 55. Be6 {[%clk 00:00:41]} {[%emt 00:00:02]} Rf1
{[%clk 00:00:25]} {[%emt 00:00:11]} 56. Bg4 {[%clk 00:00:41]} {[%emt 00:00:04]}
Rg1 {[%clk 00:00:23]} {[%emt 00:00:07]} 57. e6 {[%clk 00:00:41]} {[%emt
00:00:05]} Rh1 {[%clk 00:00:22]} {[%emt 00:00:06]} 58. Nd5 {[%clk 00:00:40]}
{[%emt 00:00:06]} Kf8 {[%clk 00:00:21]} {[%emt 00:00:06]} 59. Nxe7 {[%clk
00:00:38]} {[%emt 00:00:07]} Kxe7 {[%clk 00:00:24]} {[%emt 00:00:02]} 60. Kf5
{[%clk 00:00:38]} {[%emt 00:00:05]} h5 {[%clk 00:00:27]} {[%emt 00:00:03]} 61.
Bxh5 {[%clk 00:00:39]} {[%emt 00:00:04]} Rxh3 {[%clk 00:00:31]} {[%emt
00:00:01]} 62. Nf4 {[%clk 00:00:43]} {[%emt 00:00:01]} Re3 {[%clk 00:00:29]}
{[%emt 00:00:08]} 63. Nd5+ {[%clk 00:00:47]} 1-0